[Event "*** Titled Tuesday 3|2 Blitz"]
[Site "Chess.com"]
[Date "2015.12.01"]
[Round "2"]
[White "LyonBeast"]
[Black "AndreyOstrovskiy"]
[Result "1-0"]
[WhiteElo "2710"]
[BlackElo "2434"]
[TimeControl "180+2"]
[EndTime "11:19:37 PST"]
[Termination "LyonBeast won by checkmate"]

1. Nf3 {[%clk 0:01:49.2]} 1... Nf6 {[%clk 0:03:00.5]} 2. g3 {[%clk 0:01:46.5]}
2... d5 {[%clk 0:03:00.4]} 3. Bg2 {[%clk 0:01:48.4]} 3... e6 {[%clk 0:03:01.2]}
4. O-O {[%clk 0:01:50]} 4... Be7 {[%clk 0:03:00.8]} 5. c4 {[%clk 0:01:49.8]}
5... O-O {[%clk 0:03:01.1]} 6. Qc2 {[%clk 0:01:50.3]} 6... b6 {[%clk 0:02:59.6]}
7. d4 {[%clk 0:01:50.4]} 7... c6 {[%clk 0:02:59.5]} 8. Bg5 {[%clk 0:01:51]} 8...
Ba6 {[%clk 0:02:57.7]} 9. Nbd2 {[%clk 0:01:51.4]} 9... Nbd7 {[%clk 0:02:57.9]}
10. Rac1 {[%clk 0:01:51.9]} 10... h6 {[%clk 0:02:56.8]} 11. Bxf6 {[%clk
0:01:52]} 11... Bxf6 {[%clk 0:02:46.4]} 12. Rfd1 {[%clk 0:01:53]} 12... Rc8
{[%clk 0:02:44.9]} 13. e4 {[%clk 0:01:53.4]} 13... c5 {[%clk 0:02:43.9]} 14. Qa4
{[%clk 0:01:46.7]} 14... Bxc4 {[%clk 0:02:32.8]} 15. Nxc4 {[%clk 0:01:47.2]}
15... dxc4 {[%clk 0:02:34.3]} 16. e5 {[%clk 0:01:44.7]} 16... Be7 {[%clk
0:02:31.7]} 17. d5 {[%clk 0:01:41.8]} 17... Bg5 {[%clk 0:01:37.8]} 18. Nxg5
{[%clk 0:01:38.1]} 18... Nxe5 {[%clk 0:01:38.2]} 19. Nf3 {[%clk 0:01:32.5]}
19... Nd3 {[%clk 0:01:35.3]} 20. dxe6 {[%clk 0:01:32.9]} 20... Nxb2 {[%clk
0:01:22.3]} 21. Rxd8 {[%clk 0:01:31.5]} 21... Nxa4 {[%clk 0:01:22.9]} 22. exf7+
{[%clk 0:01:19.3]} 22... Kxf7 {[%clk 0:01:23.1]} 23. Ne5+ {[%clk 0:01:20.6]}
23... Ke6 {[%clk 0:01:22.3]} 24. Bh3+ {[%clk 0:01:16]} 24... Kxe5 {[%clk
0:01:23.4]} 25. Re1+ {[%clk 0:01:14.4]} 25... Kf6 {[%clk 0:01:22.5]} 26. Rd6+
{[%clk 0:01:05.7]} 26... Kf7 {[%clk 0:01:13.4]} 27. Be6+ {[%clk 0:01:05.9]}
27... Ke7 {[%clk 0:01:13.8]} 28. Rd7+ {[%clk 0:01:03.8]} 28... Kf6 {[%clk
0:01:14.6]} 29. Bxc4 {[%clk 0:00:58.8]} 29... Nb2 {[%clk 0:00:58.4]} 30. Rd6+
{[%clk 0:00:50.8]} 30... Kf5 {[%clk 0:00:54.4]} 31. Be6+ {[%clk 0:00:50.7]}
31... Kg5 {[%clk 0:00:53.1]} 32. h4+ {[%clk 0:00:49.1]} 32... Kh5 {[%clk
0:00:50.6]} 33. Re5+ {[%clk 0:00:46.8]} 33... g5 {[%clk 0:00:51.6]} 34. Kg2
{[%clk 0:00:35.2]} 34... Rcd8 {[%clk 0:00:48.6]} 35. Rxd8 {[%clk 0:00:29]} 35...
Rxd8 {[%clk 0:00:49.9]} 36. Bf7+ {[%clk 0:00:30]} 36... Kg4 {[%clk 0:00:51.4]}
37. f3# {[%clk 0:00:30.9]} 1-0

[Event "*** Titled Tuesday 3|2 Blitz"]
[Site "Chess.com"]
[Date "2015.12.01"]
[Round "2"]
[White "GrigorGrigorov"]
[Black "1stSecond"]
[Result "1-0"]
[WhiteElo "2543"]
[BlackElo "2387"]
[TimeControl "180+2"]
[EndTime "11:19:55 PST"]
[Termination "GrigorGrigorov won by resignation"]

1. d4 {[%clk 0:03:01.9]} 1... Nf6 {[%clk 0:03:00.6]} 2. c4 {[%clk 0:03:02.3]}
2... e6 {[%clk 0:03:01.9]} 3. Nf3 {[%clk 0:03:02.9]} 3... c5 {[%clk 0:03:03.4]}
4. d5 {[%clk 0:03:03.1]} 4... exd5 {[%clk 0:03:04.7]} 5. cxd5 {[%clk 0:03:04.4]}
5... d6 {[%clk 0:03:06.6]} 6. Nc3 {[%clk 0:03:05.9]} 6... g6 {[%clk 0:03:07.8]}
7. Bf4 {[%clk 0:03:06]} 7... a6 {[%clk 0:03:09]} 8. a4 {[%clk 0:03:06]} 8... Bg7
{[%clk 0:03:10]} 9. e4 {[%clk 0:03:06.5]} 9... O-O {[%clk 0:03:11.1]} 10. Be2
{[%clk 0:03:07.5]} 10... Ne8 {[%clk 0:03:12]} 11. Nd2 {[%clk 0:03:03.8]} 11...
Nd7 {[%clk 0:03:13.4]} 12. O-O {[%clk 0:03:03.5]} 12... Qe7 {[%clk 0:03:14.3]}
13. Re1 {[%clk 0:02:54.7]} 13... Rb8 {[%clk 0:03:13.3]} 14. Qc2 {[%clk
0:02:36.3]} 14... b6 {[%clk 0:03:07.4]} 15. Nc4 {[%clk 0:02:36]} 15... Ne5
{[%clk 0:03:06.4]} 16. Bxe5 {[%clk 0:02:30.1]} 16... Bxe5 {[%clk 0:03:06.8]} 17.
Nxe5 {[%clk 0:02:30.5]} 17... Qxe5 {[%clk 0:03:08.3]} 18. Qd2 {[%clk 0:02:31.3]}
18... Nf6 {[%clk 0:03:02.4]} 19. Bf1 {[%clk 0:02:30.7]} 19... Re8 {[%clk
0:03:01.6]} 20. Rad1 {[%clk 0:02:27.2]} 20... g5 {[%clk 0:02:51.8]} 21. Re3
{[%clk 0:02:24.4]} 21... h6 {[%clk 0:02:43.7]} 22. Rde1 {[%clk 0:02:23.5]} 22...
Kh7 {[%clk 0:02:38.3]} 23. f3 {[%clk 0:01:57.6]} 23... Qd4 {[%clk 0:02:32.6]}
24. Qf2 {[%clk 0:01:51.4]} 24... Nh5 {[%clk 0:02:26.3]} 25. g3 {[%clk
0:01:51.3]} 25... Qf6 {[%clk 0:02:16.1]} 26. Bd3 {[%clk 0:01:49]} 26... Kh8
{[%clk 0:02:15.3]} 27. Kh1 {[%clk 0:01:50]} 27... Re7 {[%clk 0:02:08.1]} 28. Bf1
{[%clk 0:01:46]} 28... b5 {[%clk 0:02:09]} 29. axb5 {[%clk 0:01:45.5]} 29...
axb5 {[%clk 0:02:10.9]} 30. Bxb5 {[%clk 0:01:30]} 30... Reb7 {[%clk 0:02:11.4]}
31. e5 {[%clk 0:01:30.8]} 31... dxe5 {[%clk 0:02:12.1]} 32. Rxe5 {[%clk
0:01:31.1]} 32... Bg4 {[%clk 0:02:13.6]} 33. Kg2 {[%clk 0:01:12.6]} 33... Bf5
{[%clk 0:02:01]} 34. Qxc5 {[%clk 0:01:03.4]} 34... Kg7 {[%clk 0:01:27.9]} 35.
Re8 {[%clk 0:01:02.2]} 35... Rxb5 {[%clk 0:01:25.7]} 36. Nxb5 {[%clk 0:00:53.3]}
36... Qxb2+ {[%clk 0:01:26.1]} 37. R1e2 {[%clk 0:00:54.3]} 37... Qxb5 {[%clk
0:01:15]} 38. Qf8+ {[%clk 0:00:54.5]} 38... Kg6 {[%clk 0:01:15.4]} 39. Qd6+
{[%clk 0:00:54.9]} 39... Nf6 {[%clk 0:01:12.6]} 40. Qxb8 {[%clk 0:00:53.6]}
40... Qxd5 {[%clk 0:01:13.7]} 41. R8e5 {[%clk 0:00:47.7]} 41... Qc6 {[%clk
0:01:10.2]} 42. Rxf5 {[%clk 0:00:44]} 42... Kxf5 {[%clk 0:01:02.3]} 43. Qb1+
{[%clk 0:00:44.6]} 43... Ne4 {[%clk 0:00:59.6]} 44. Qxe4+ {[%clk 0:00:45.1]} 1-0

[Event "*** Titled Tuesday 3|2 Blitz"]
[Site "Chess.com"]
[Date "2015.12.01"]
[Round "2"]
[White "Matibar"]
[Black "Zvonokchess"]
[Result "1/2-1/2"]
[WhiteElo "2496"]
[BlackElo "2536"]
[TimeControl "180+2"]
[EndTime "11:20:01 PST"]
[Termination "Game drawn by repetition"]

1. e4 {[%clk 0:03:01]} 1... d5 {[%clk 0:03:00.3]} 2. exd5 {[%clk 0:03:01.3]}
2... Qxd5 {[%clk 0:03:02.2]} 3. Nc3 {[%clk 0:03:03]} 3... Qd6 {[%clk 0:03:01.6]}
4. d4 {[%clk 0:03:03.4]} 4... Nf6 {[%clk 0:03:02.2]} 5. Nf3 {[%clk 0:03:03.8]}
5... Bg4 {[%clk 0:03:03.2]} 6. Nb5 {[%clk 0:02:58.2]} 6... Qb6 {[%clk
0:03:03.1]} 7. c4 {[%clk 0:02:58.6]} 7... c6 {[%clk 0:03:02.9]} 8. c5 {[%clk
0:02:59.2]} 8... Qd8 {[%clk 0:03:03.3]} 9. Nc3 {[%clk 0:03:00.3]} 9... e6 {[%clk
0:03:03.1]} 10. Be2 {[%clk 0:02:49.8]} 10... Be7 {[%clk 0:03:03.6]} 11. Be3
{[%clk 0:02:50.4]} 11... O-O {[%clk 0:03:03.4]} 12. h3 {[%clk 0:02:44]} 12...
Bxf3 {[%clk 0:02:27.9]} 13. Bxf3 {[%clk 0:02:43.6]} 13... Nbd7 {[%clk
0:02:29.8]} 14. O-O {[%clk 0:02:38.5]} 14... Nd5 {[%clk 0:02:27.7]} 15. Nxd5
{[%clk 0:02:32.6]} 15... exd5 {[%clk 0:02:29.6]} 16. b4 {[%clk 0:02:33.5]} 16...
Re8 {[%clk 0:02:26.8]} 17. a4 {[%clk 0:02:33.1]} 17... Nf8 {[%clk 0:02:27.6]}
18. b5 {[%clk 0:02:33.6]} 18... Ne6 {[%clk 0:02:21.5]} 19. Qd3 {[%clk
0:02:33.3]} 19... Bg5 {[%clk 0:02:14.6]} 20. a5 {[%clk 0:02:25.2]} 20... a6
{[%clk 0:02:12.2]} 21. bxc6 {[%clk 0:02:23.9]} 21... bxc6 {[%clk 0:02:14.1]} 22.
Rfb1 {[%clk 0:02:25]} 22... Qf6 {[%clk 0:02:03.6]} 23. Ra3 {[%clk 0:02:07.4]}
23... Bxe3 {[%clk 0:01:57.4]} 24. fxe3 {[%clk 0:02:07.1]} 24... Ng5 {[%clk
0:01:58.5]} 25. Rf1 {[%clk 0:02:06]} 25... Qe7 {[%clk 0:01:48.1]} 26. Rb3 {[%clk
0:01:57.1]} 26... Qc7 {[%clk 0:01:48.5]} 27. Qf5 {[%clk 0:01:42.5]} 27... Ne4
{[%clk 0:01:27.7]} 28. Bxe4 {[%clk 0:01:16.2]} 28... Rxe4 {[%clk 0:01:29.6]} 29.
Rf4 {[%clk 0:01:17]} 29... Re6 {[%clk 0:01:19]} 30. Rb6 {[%clk 0:00:50.8]} 30...
Qe7 {[%clk 0:01:18.7]} 31. Kh2 {[%clk 0:00:34.3]} 31... g6 {[%clk 0:01:12]} 32.
Qb1 {[%clk 0:00:34.4]} 32... f5 {[%clk 0:00:56.9]} 33. Rf3 {[%clk 0:00:30.5]}
33... Rxe3 {[%clk 0:00:55.4]} 34. Rxe3 {[%clk 0:00:20.1]} 34... Qxe3 {[%clk
0:00:57.3]} 35. Rb8+ {[%clk 0:00:20.6]} 35... Rxb8 {[%clk 0:00:58.3]} 36. Qxb8+
{[%clk 0:00:22.1]} 36... Kg7 {[%clk 0:00:54.6]} 37. Qc7+ {[%clk 0:00:22.6]}
37... Kh6 {[%clk 0:00:55.6]} 38. Qxc6 {[%clk 0:00:23.7]} 38... Qf4+ {[%clk
0:00:56.1]} 39. Kh1 {[%clk 0:00:23.9]} 39... Qf1+ {[%clk 0:00:57]} 40. Kh2
{[%clk 0:00:24.8]} 40... Qf4+ {[%clk 0:00:58.6]} 41. Kh1 {[%clk 0:00:25.9]}
41... Qf1+ {[%clk 0:00:59.7]} 42. Kh2 {[%clk 0:00:27.2]} 42... Qf4+ {[%clk
0:01:01.1]} 1/2-1/2

[Event "*** Titled Tuesday 3|2 Blitz"]
[Site "Chess.com"]
[Date "2015.12.01"]
[Round "2"]
[White "jcibarra"]
[Black "alex_zapata"]
[Result "1-0"]
[WhiteElo "2505"]
[BlackElo "2168"]
[TimeControl "180+2"]
[EndTime "11:20:24 PST"]
[Termination "jcibarra won by checkmate"]

1. e4 {[%clk 0:03:01.9]} 1... c5 {[%clk 0:03:00.3]} 2. Nf3 {[%clk 0:03:02.5]}
2... d6 {[%clk 0:03:01.5]} 3. d4 {[%clk 0:03:02.5]} 3... cxd4 {[%clk 0:03:03.4]}
4. Nxd4 {[%clk 0:03:04.3]} 4... Nf6 {[%clk 0:03:05.3]} 5. Nc3 {[%clk 0:03:05.5]}
5... a6 {[%clk 0:03:06.6]} 6. Be3 {[%clk 0:03:07]} 6... e5 {[%clk 0:03:06.7]} 7.
Nf3 {[%clk 0:03:08.1]} 7... Be6 {[%clk 0:03:08.6]} 8. Ng5 {[%clk 0:03:08.9]}
8... Qc8 {[%clk 0:03:08.1]} 9. Nxe6 {[%clk 0:03:09.3]} 9... fxe6 {[%clk
0:03:10]} 10. g4 {[%clk 0:03:08]} 10... b5 {[%clk 0:03:03.4]} 11. g5 {[%clk
0:02:57]} 11... Nfd7 {[%clk 0:02:48.6]} 12. Qh5+ {[%clk 0:02:56.8]} 12... g6
{[%clk 0:02:47.7]} 13. Qg4 {[%clk 0:02:58.7]} 13... Kf7 {[%clk 0:02:25.1]} 14.
a3 {[%clk 0:02:53.9]} 14... Bg7 {[%clk 0:02:19.9]} 15. h4 {[%clk 0:02:51.6]}
15... Nc6 {[%clk 0:02:17.9]} 16. h5 {[%clk 0:02:48.3]} 16... Nd4 {[%clk
0:02:17.1]} 17. O-O-O {[%clk 0:02:43.6]} 17... Rb8 {[%clk 0:01:42.6]} 18. h6
{[%clk 0:02:41.6]} 18... Bf8 {[%clk 0:01:41.6]} 19. Bxd4 {[%clk 0:02:41.8]}
19... exd4 {[%clk 0:01:43.1]} 20. Rxd4 {[%clk 0:02:43.3]} 20... Ne5 {[%clk
0:01:42.7]} 21. Qf4+ {[%clk 0:02:38.8]} 21... Ke8 {[%clk 0:01:43.1]} 22. Qf6
{[%clk 0:02:34.8]} 22... Nf7 {[%clk 0:01:41.5]} 23. Bh3 {[%clk 0:02:14.9]} 23...
Be7 {[%clk 0:01:40.9]} 24. Qxe6 {[%clk 0:02:13.5]} 24... Qxe6 {[%clk 0:01:25.8]}
25. Bxe6 {[%clk 0:02:15.4]} 25... Nxg5 {[%clk 0:01:21.1]} 26. Bg4 {[%clk
0:02:06.1]} 26... Rf8 {[%clk 0:01:21.6]} 27. Rh2 {[%clk 0:01:52.2]} 27... Rf4
{[%clk 0:01:20.3]} 28. Rg2 {[%clk 0:01:43.9]} 28... a5 {[%clk 0:01:11.1]} 29.
Nd5 {[%clk 0:01:06.6]} 29... Rxe4 {[%clk 0:01:10.9]} 30. Rxe4 {[%clk 0:01:06.7]}
30... Nxe4 {[%clk 0:01:12.1]} 31. f3 {[%clk 0:00:49.7]} 31... Bg5+ {[%clk
0:00:58]} 32. Kd1 {[%clk 0:00:48.2]} 32... Nf6 {[%clk 0:00:42.2]} 33. Be6 {[%clk
0:00:39.7]} 33... Nxd5 {[%clk 0:00:38.3]} 34. Bxd5 {[%clk 0:00:40.7]} 34... Bxh6
{[%clk 0:00:38.3]} 35. Rh2 {[%clk 0:00:41.9]} 35... Bf4 {[%clk 0:00:36.8]} 36.
Rxh7 {[%clk 0:00:42.6]} 36... Be5 {[%clk 0:00:31.5]} 37. b3 {[%clk 0:00:38]}
37... b4 {[%clk 0:00:30.8]} 38. a4 {[%clk 0:00:38.4]} 38... Rd8 {[%clk
0:00:26.2]} 39. Bf7+ {[%clk 0:00:38.7]} 39... Kf8 {[%clk 0:00:25.9]} 40. Bxg6
{[%clk 0:00:40.1]} 40... Kg8 {[%clk 0:00:26.5]} 41. Ra7 {[%clk 0:00:39.8]} 41...
Rf8 {[%clk 0:00:27.2]} 42. Bh7+ {[%clk 0:00:39.9]} 42... Kh8 {[%clk 0:00:27.8]}
43. Be4 {[%clk 0:00:41.8]} 43... Rg8 {[%clk 0:00:29]} 44. Rh7# {[%clk
0:00:41.6]} 1-0

[Event "*** Titled Tuesday 3|2 Blitz"]
[Site "Chess.com"]
[Date "2015.12.01"]
[Round "2"]
[White "Konavets"]
[Black "Ginger_GM"]
[Result "1-0"]
[WhiteElo "2548"]
[BlackElo "2469"]
[TimeControl "180+2"]
[EndTime "11:20:25 PST"]
[Termination "Konavets won by resignation"]

1. e4 {[%clk 0:03:01.9]} 1... c5 {[%clk 0:02:59.4]} 2. Nf3 {[%clk 0:03:02.1]}
2... d6 {[%clk 0:02:58.8]} 3. d4 {[%clk 0:02:55.7]} 3... cxd4 {[%clk 0:02:59.3]}
4. Nxd4 {[%clk 0:02:56.8]} 4... Nf6 {[%clk 0:02:59.4]} 5. Nc3 {[%clk 0:02:57.9]}
5... g6 {[%clk 0:02:59.9]} 6. Be3 {[%clk 0:02:58.9]} 6... Bg7 {[%clk 0:03:00.6]}
7. f3 {[%clk 0:03:00.2]} 7... Nc6 {[%clk 0:03:01.5]} 8. Qd2 {[%clk 0:03:01.9]}
8... Bd7 {[%clk 0:03:02.3]} 9. O-O-O {[%clk 0:03:03.1]} 9... Rc8 {[%clk
0:03:02.8]} 10. Kb1 {[%clk 0:03:04.1]} 10... Ne5 {[%clk 0:03:03.3]} 11. h4
{[%clk 0:03:03.2]} 11... O-O {[%clk 0:03:02.5]} 12. g4 {[%clk 0:03:03.2]} 12...
b5 {[%clk 0:02:58.6]} 13. Ndxb5 {[%clk 0:03:01.1]} 13... Nxf3 {[%clk 0:02:54.1]}
14. Qg2 {[%clk 0:02:56.4]} 14... Bxg4 {[%clk 0:02:50.8]} 15. h5 {[%clk
0:02:39.4]} 15... Ne5 {[%clk 0:02:41.6]} 16. hxg6 {[%clk 0:02:39.6]} 16... Bxd1
{[%clk 0:02:31.6]} 17. gxh7+ {[%clk 0:02:34.3]} 17... Kh8 {[%clk 0:02:29.9]} 18.
Nxd1 {[%clk 0:02:33.9]} 18... Neg4 {[%clk 0:02:23.2]} 19. Bd4 {[%clk 0:02:32.6]}
19... e5 {[%clk 0:02:20]} 20. Bxa7 {[%clk 0:02:30]} 20... Qa5 {[%clk 0:02:06.9]}
21. Be2 {[%clk 0:02:04.6]} 21... Ra8 {[%clk 0:01:51.2]} 22. Ndc3 {[%clk
0:02:04.6]} 22... Rxa7 {[%clk 0:01:44.6]} 23. Nxa7 {[%clk 0:02:05.4]} 23... Ne3
{[%clk 0:01:35.8]} 24. Qf2 {[%clk 0:02:03.7]} 24... Qxa7 {[%clk 0:01:36.1]} 25.
Rh3 {[%clk 0:02:04.6]} 25... d5 {[%clk 0:01:29.5]} 26. exd5 {[%clk 0:01:32.8]}
26... e4 {[%clk 0:01:07.8]} 27. Qxe3 {[%clk 0:01:31.6]} 27... Qb7 {[%clk
0:01:04.6]} 28. Qg5 {[%clk 0:01:14.7]} 28... Rb8 {[%clk 0:00:49.2]} 29. Bb5
{[%clk 0:01:12.2]} 29... Nxd5 {[%clk 0:00:38.5]} 30. Qxd5 {[%clk 0:00:23.3]}
30... Qxd5 {[%clk 0:00:38.9]} 31. Nxd5 {[%clk 0:00:25.2]} 31... Rxb5 {[%clk
0:00:40.1]} 32. Nc3 {[%clk 0:00:26.4]} 32... Re5 {[%clk 0:00:41.3]} 33. Ne2
{[%clk 0:00:26.3]} 33... f5 {[%clk 0:00:30.9]} 34. c4 {[%clk 0:00:26.2]} 34...
Rc5 {[%clk 0:00:29.8]} 35. b3 {[%clk 0:00:25.8]} 35... Be5 {[%clk 0:00:30.9]}
36. Rh5 {[%clk 0:00:25.5]} 36... Bd6 {[%clk 0:00:30.6]} 37. Kc2 {[%clk
0:00:24.8]} 37... Ra5 {[%clk 0:00:25.5]} 38. a4 {[%clk 0:00:25.8]} 38... Bb4
{[%clk 0:00:24.3]} 39. Nf4 {[%clk 0:00:26.5]} 39... Re5 {[%clk 0:00:21.5]} 40.
Ng6+ {[%clk 0:00:27.4]} 1-0

[Event "*** Titled Tuesday 3|2 Blitz"]
[Site "Chess.com"]
[Date "2015.12.01"]
[Round "2"]
[White "StellarChessPro"]
[Black "Rickstereo"]
[Result "1/2-1/2"]
[WhiteElo "2267"]
[BlackElo "2210"]
[TimeControl "180+2"]
[EndTime "11:20:26 PST"]
[Termination "Game drawn by repetition"]

1. d4 {[%clk 0:03:01.9]} 1... Nf6 {[%clk 0:02:59.8]} 2. Bg5 {[%clk 0:03:02.2]}
2... Ne4 {[%clk 0:03:00]} 3. Bf4 {[%clk 0:03:03.3]} 3... d5 {[%clk 0:03:00.8]}
4. f3 {[%clk 0:03:04.7]} 4... Nd6 {[%clk 0:03:01.5]} 5. e4 {[%clk 0:03:05.9]}
5... dxe4 {[%clk 0:03:01.9]} 6. Nc3 {[%clk 0:03:07.3]} 6... exf3 {[%clk
0:03:00.3]} 7. Nxf3 {[%clk 0:03:09.2]} 7... Bg4 {[%clk 0:02:43.2]} 8. h3 {[%clk
0:03:08.9]} 8... Bh5 {[%clk 0:02:43.1]} 9. g4 {[%clk 0:03:02.2]} 9... Bg6 {[%clk
0:02:43.3]} 10. Ne5 {[%clk 0:03:03]} 10... e6 {[%clk 0:02:42.5]} 11. h4 {[%clk
0:02:53.2]} 11... Be4 {[%clk 0:02:42.1]} 12. Nxe4 {[%clk 0:02:50.6]} 12... Nxe4
{[%clk 0:02:41.9]} 13. Bg2 {[%clk 0:02:51.2]} 13... Nd6 {[%clk 0:02:39.2]} 14.
c4 {[%clk 0:02:50.3]} 14... c6 {[%clk 0:02:34.6]} 15. Qb3 {[%clk 0:02:46.2]}
15... Qb6 {[%clk 0:02:28.9]} 16. c5 {[%clk 0:02:27]} 16... Qxb3 {[%clk
0:02:28.6]} 17. axb3 {[%clk 0:02:28.9]} 17... Nb5 {[%clk 0:02:22.7]} 18. Be3
{[%clk 0:02:25.1]} 18... Be7 {[%clk 0:02:22.4]} 19. h5 {[%clk 0:02:25.1]} 19...
h6 {[%clk 0:02:19.9]} 20. O-O {[%clk 0:02:25.4]} 20... O-O {[%clk 0:02:17.2]}
21. Be4 {[%clk 0:02:21.3]} 21... Bg5 {[%clk 0:02:12]} 22. Bf2 {[%clk 0:02:16.6]}
22... Na6 {[%clk 0:02:08.7]} 23. Nxc6 {[%clk 0:02:14.1]} 23... Nac7 {[%clk
0:01:51.9]} 24. Na5 {[%clk 0:02:10.7]} 24... Nd5 {[%clk 0:01:34.7]} 25. Bxd5
{[%clk 0:02:03.7]} 25... exd5 {[%clk 0:01:35.1]} 26. Nxb7 {[%clk 0:02:05.6]}
26... f5 {[%clk 0:01:30.6]} 27. Ra5 {[%clk 0:01:36.4]} 27... Nc7 {[%clk
0:01:26.1]} 28. gxf5 {[%clk 0:01:31.8]} 28... Rxf5 {[%clk 0:01:22.3]} 29. Nd6
{[%clk 0:01:28.6]} 29... Rf4 {[%clk 0:01:18.4]} 30. Bg3 {[%clk 0:01:22.6]} 30...
Rg4 {[%clk 0:01:16.9]} 31. Kh2 {[%clk 0:01:22.8]} 31... Be3 {[%clk 0:01:10.1]}
32. Nf5 {[%clk 0:01:22.7]} 32... Bd2 {[%clk 0:01:02.3]} 33. Bxc7 {[%clk
0:01:21.4]} 33... Bxa5 {[%clk 0:00:55.6]} 34. Bxa5 {[%clk 0:01:23.3]} 34... Rg5
{[%clk 0:00:55.7]} 35. Ne7+ {[%clk 0:01:22.4]} 35... Kh7 {[%clk 0:00:56.1]} 36.
c6 {[%clk 0:01:23.1]} 36... Re8 {[%clk 0:00:44.6]} 37. c7 {[%clk 0:01:17.7]}
37... Rxe7 {[%clk 0:00:45.7]} 38. c8=Q {[%clk 0:00:57.2]} 38... Re2+ {[%clk
0:00:40.9]} 39. Kh3 {[%clk 0:00:58.3]} 39... Re3+ {[%clk 0:00:27.1]} 40. Kh4
{[%clk 0:00:55.1]} 40... Re4+ {[%clk 0:00:28]} 41. Kh3 {[%clk 0:00:56.3]} 41...
Re3+ {[%clk 0:00:29.4]} 42. Kh2 {[%clk 0:00:53.6]} 42... Re2+ {[%clk 0:00:30.4]}
43. Kh3 {[%clk 0:00:44.5]} 43... Re3+ {[%clk 0:00:30.6]} 44. Kh4 {[%clk
0:00:46.4]} 44... Re4+ {[%clk 0:00:31.7]} 45. Kh3 {[%clk 0:00:46.6]} 45... Re3+
{[%clk 0:00:31.8]} 1/2-1/2

[Event "*** Titled Tuesday 3|2 Blitz"]
[Site "Chess.com"]
[Date "2015.12.01"]
[Round "2"]
[White "kpio91"]
[Black "DeviatkinAndrey"]
[Result "1/2-1/2"]
[WhiteElo "2534"]
[BlackElo "2481"]
[TimeControl "180+2"]
[EndTime "11:20:28 PST"]
[Termination "Game drawn by repetition"]

1. Nf3 {[%clk 0:03:01.9]} 1... d5 {[%clk 0:03:00.3]} 2. g3 {[%clk 0:03:02.7]}
2... c6 {[%clk 0:03:00.8]} 3. Bg2 {[%clk 0:03:04.2]} 3... Bg4 {[%clk 0:03:01.9]}
4. O-O {[%clk 0:03:05.3]} 4... Nd7 {[%clk 0:03:02.6]} 5. d3 {[%clk 0:03:03.2]}
5... Ngf6 {[%clk 0:03:02.1]} 6. h3 {[%clk 0:03:04.4]} 6... Bh5 {[%clk
0:02:59.2]} 7. Qe1 {[%clk 0:03:05.5]} 7... e5 {[%clk 0:02:49.3]} 8. e4 {[%clk
0:03:06.6]} 8... dxe4 {[%clk 0:02:49.3]} 9. dxe4 {[%clk 0:03:07.9]} 9... Be7
{[%clk 0:02:50.4]} 10. Nbd2 {[%clk 0:03:08.2]} 10... O-O {[%clk 0:02:50]} 11.
Nc4 {[%clk 0:03:08.5]} 11... Qc7 {[%clk 0:02:50.7]} 12. a4 {[%clk 0:03:09.3]}
12... Ne8 {[%clk 0:02:45.6]} 13. b3 {[%clk 0:02:58.5]} 13... f6 {[%clk
0:02:45.3]} 14. Nh4 {[%clk 0:02:54.5]} 14... Bf7 {[%clk 0:02:36]} 15. Nf5 {[%clk
0:02:50.3]} 15... Bc5 {[%clk 0:02:36.2]} 16. Nce3 {[%clk 0:02:46.2]} 16... a5
{[%clk 0:02:12.3]} 17. Kh1 {[%clk 0:02:40.6]} 17... Nd6 {[%clk 0:01:37]} 18.
Nxd6 {[%clk 0:02:35.1]} 18... Bxd6 {[%clk 0:01:38]} 19. Nf5 {[%clk 0:02:34.6]}
19... Bb4 {[%clk 0:01:38.6]} 20. Qe2 {[%clk 0:02:33.1]} 20... Rfe8 {[%clk
0:01:14.8]} 21. Bb2 {[%clk 0:02:17.1]} 21... Rad8 {[%clk 0:01:14.6]} 22. f4
{[%clk 0:02:10]} 22... Nf8 {[%clk 0:00:51.2]} 23. fxe5 {[%clk 0:01:45.7]} 23...
fxe5 {[%clk 0:00:51.7]} 24. Rad1 {[%clk 0:01:44.5]} 24... Ng6 {[%clk 0:00:41.3]}
25. h4 {[%clk 0:01:41.8]} 25... Bf8 {[%clk 0:00:33.7]} 26. Qg4 {[%clk 0:01:29]}
26... Rxd1 {[%clk 0:00:33.3]} 27. Rxd1 {[%clk 0:01:28.1]} 27... h5 {[%clk
0:00:21.5]} 28. Qxh5 {[%clk 0:01:13.1]} 28... Nf4 {[%clk 0:00:22]} 29. Qg4
{[%clk 0:00:43.6]} 29... Bh5 {[%clk 0:00:21.7]} 30. Rd7 {[%clk 0:00:44.6]} 30...
Bxg4 {[%clk 0:00:20.5]} 31. Rxc7 {[%clk 0:00:45.9]} 31... Nxg2 {[%clk
0:00:14.8]} 32. Kxg2 {[%clk 0:00:46.9]} 32... Rd8 {[%clk 0:00:16.5]} 33. Bxe5
{[%clk 0:00:40.2]} 33... Rd2+ {[%clk 0:00:16.4]} 34. Kf1 {[%clk 0:00:41.5]}
34... Rd1+ {[%clk 0:00:14.6]} 35. Kg2 {[%clk 0:00:25.6]} 35... Rd2+ {[%clk
0:00:14.3]} 36. Kf1 {[%clk 0:00:26.5]} 36... Rd1+ {[%clk 0:00:15.1]} 37. Kg2
{[%clk 0:00:26.8]} 37... Rd2+ {[%clk 0:00:15.5]} 38. Kf1 {[%clk 0:00:28.1]}
38... Rd1+ {[%clk 0:00:16.7]} 39. Kg2 {[%clk 0:00:29.2]} 1/2-1/2